Cogmind - Beta 15 @@@ ROGUE MODE // 2025.07.13 @ 10:17:51 Player: Johge Result: Core destroyed Performance ------------- Evolutions (1) 500 Regions Visited (2) 400 Robots Destroyed (15) 75 Value Destroyed (378) 378 Prototype IDs (0) 0 Alien Tech Used (0) 0 Bonus (0) 0 TOTAL SCORE: 1353 Bonus ------- None Cogmind --------- Core Integrity 0/400 Matter 300/300 Energy 100/100 System Corruption 2% Temperature Cool (0) Movement Core (100) Ox1 Location -9/Materials Parts ------- > --- POWER (1) -------- (None) > --- PROPULSION (2) --- (None) > --- UTILITY (4) ------ Small Storage Unit Sensor Array Signal Interpreter > --- WEAPON (2) ------- (None) > --- INVENTORY (8) ---- Flight Unit Small Matter Pod (50) Peak State ------------ > --- POWER ------------ Light Ion Engine > --- PROPULSION ------- Aluminum Leg > --- UTILITY ---------- Heat Sink Small Storage Unit Sensor Array Signal Interpreter > --- WEAPON ----------- Medium Laser Light Assault Rifle > --- INVENTORY -------- Ion Engine Ion Engine Flight Unit Small Matter Pod [Rating: 8] Favorites ----------- Power Light Ion Engine Engine Light Ion Engine Propulsion Aluminum Leg Treads Light Treads Leg Aluminum Leg Utility Small Storage Unit Device Sensor Array Storage Small Storage Unit Processor Signal Interpreter Weapon Light Assault Rifle Energy Gun Medium Laser Ballistic Gun Light Assault Rifle Build | -11 -10 -9 ------- Run | Yrd Mat Mat Slots Evolved 2 | . . 2 Power . | . . . Propulsion . | . . . Utility 2 | . . 2 Weapon . | . . . Parts Attached 17 | 8 1 8 Power 4 | 2 . 2 Engine 4 | 2 . 2 Core . | . . . Reactor . | . . . Propulsion 5 | 3 . 2 Treads 1 | 1 . . Leg 4 | 2 . 2 Wheel . | . . . Hover . | . . . Flight . | . . . Utility 4 | 1 1 2 Device 2 | . 1 1 Storage 1 | 1 . . Processor 1 | . . 1 Hackware . | . . . Protection . | . . . Artifact . | . . . Weapon 4 | 2 . 2 Energy Gun 1 | 1 . . Energy Cannon . | . . . Ballistic Gun 3 | 1 . 2 Ballistic Cannon . | . . . Launcher . | . . . Special Weapon . | . . . Impact Weapon . | . . . Slashing Weapon . | . . . Piercing Weapon . | . . . Special Melee Weapon . | . . . Unidentified Prototypes . | . . . Parts Lost 13 | . 2 11 Power 4 | . 1 3 Propulsion 4 | . 1 3 Utility 1 | . . 1 Weapon 4 | . . 4 Highest Loss Streak 9 | . 2 9 To Critical Strikes . | . . . Average Backups 3 | 1 4 3 Power 1 | . 1 1 Propulsion . | . . 1 Utility 1 | . 1 1 Weapon . | . . . Tool/Special . | . . . Unused Backups 2 | . . 2 Power . | . . . Propulsion 1 | . . 1 Utility 1 | . . 1 Weapon . | . . . Tool/Special . | . . . Average Slot Usage (%) 78 | . 80 74 Engine 12 | . 14 9 Leg 15 | . 18 11 Device 11 | . 7 17 Storage 12 | . 14 11 Processor 3 | . . 9 Energy Gun 10 | . 11 8 Ballistic Gun 11 | . 14 7 Peak Build Rating 8 | 6 6 8 Average Rating 5 | 5 5 6 On Entrance 4 | . 6 6 Naked Turns . | . . . Heaviest Build 13 | 13 13 13 Greatest Support 20 | 20 20 20 Greatest Overweight (x) 3 | . 1 3 Average Overweight (x) . | . . . Largest Inventory Capacity 8 | 8 8 8 Average Capacity 7 | 7 8 8 Most Carried 6 | 4 5 6 Average Carried 3 | 1 4 3 Final Capacity 8 | 8 8 8 Final Carried 5 | 2 5 2 Class Distribution -------------------- 100% | Mutant Dominant Class ---------------- Mutant | -10/Materials Mutant | -9/Materials Resources | -11 -10 -9 ----------- Run | Yrd Mat Mat Matter Collected 471 | 328 61 82 Remotely . | . . . Salvage Created 597 | 137 246 214 Parts 24 | 6 12 6 Haulers Intercepted 1 | . 1 . Recyclers Shooed 1 | . 1 . Parts Field Recycled . | . . . Retrieved Matter . | . . . Parts Self-Destructed . | . . . Prevented . | . . . Kills | -11 -10 -9 ------- Run | Yrd Mat Mat Combat Hostiles Destroyed 9 | . 4 5 Guns 8 | . 4 4 Classes Destroyed 6 | 3 3 . Worker 2 | 2 . . Tunneler 1 | 1 . . Hauler 1 | . 1 . Recycler 1 | 1 . . Watcher 1 | . 1 . Grunt 9 | . 4 5 Best Kill Streak 4 | 3 4 3 Combat Bots Only 4 | . 4 3 Max Kills in Single Turn 1 | 1 1 1 Gunslinging . | . . . Exploded . | . . . Melee . | . . . Uniques/NPCs Destroyed . | . . . Combat | -11 -10 -9 -------- Run | Yrd Mat Mat Hostile Shots Fired 178 | . 46 132 Missed 38 | . 9 29 Hits 140 | . 37 103 Projectile 140 | . 37 103 Critical Strikes 3 | . 1 2 Damage Taken 1692 | . 450 1242 Core 516 | . 114 402 Absorbed by Shields . | . . . Regen/Repaired (Parts) 132 | . 132 . Core Remaining (%) 77 | 100 54 . Volleys Fired 90 | 13 26 51 Largest 2 | 2 2 2 Hottest 70 | 70 70 70 Shots Fired 140 | 26 52 62 Gun 140 | 26 52 62 Cannon . | . . . Launcher . | . . . Special . | . . . Kinetic 71 | 13 26 32 Thermal 69 | 13 26 30 Explosive . | . . . Electromagnetic . | . . . Robot Hit Streak 20 | 6 10 20 Robot Miss Streak 4 | 1 4 3 Penetration Max . | . . . Secondary Targets . | . . . Shots Hit Robots 102 | 18 35 49 Core Hits 37 | 6 15 16 Critical Kills . | . . . Critical Parts Destroyed 1 | . 1 . Critical Strikes 7 | 3 2 2 Burn 6 | 3 1 2 Destroy 1 | . 1 . Melee Attacks . | . . . Impact . | . . . Slashing . | . . . Piercing . | . . . Sneak Attacks . | . . . Combat Hostiles . | . . . Follow-up Attacks . | . . . Damage Inflicted 1082 | 178 395 509 Guns 1037 | 178 386 473 Cannons . | . . . Explosions . | . . . Melee . | . . . Ramming 45 | . 9 36 Kinetic 487 | 78 170 239 Thermal 550 | 100 216 234 Explosive . | . . . Electromagnetic . | . . . Impact . | . . . Slashing . | . . . Piercing . | . . . Highest Corruption 2 | . . 2 Average Corruption 2 | . . 2 Corruption Purged . | . . . Corruption Blocked . | . . . Effects 1 | . . 1 Energy Discharges 1 | . . 1 Overload Shots . | . . . Overflow Damage . | . . . Projectiles . | . . . Explosions . | . . . Melee . | . . . Knockbacks . | . . . Impact . | . . . Kinetic . | . . . Secondary . | . . . Self-Inflicted Damage 3 | . . 3 Shots . | . . . Rammed 9 | . . 9 Targets Rammed 25 | . 2 23 Kicked 16 | . 2 14 Crushed . | . . . Highest Temperature 413 | 90 413 140 Average Temperature 101 | 36 171 52 Received Heat Transfer 753 | . 279 474 Effects 3 | . 3 . Shutdowns 2 | . 2 . Damage (minor) 1 | . 1 . Siege Activations . | . . . Martial Activations . | . . . Shielding Activations . | . . . Robots Disrupted . | . . . Combat Hostiles . | . . . Robots Corrupted . | . . . Combat Hostiles . | . . . Parts Fried . | . . . Impact Corruptions . | . . . Robots Melted 1 | . . 1 Combat Hostiles 1 | . . 1 Parts Melted 2 | 1 . 1 Heat Transferred 2072 | 518 703 851 Parts Sabotaged . | . . . Parts Stolen . | . . . Parts Stripped . | . . . Power Chain Reactions . | . . . Alert | -11 -10 -9 ------- Run | Yrd Mat Mat Maximum Alert Level . | . . . Low Security (%) 100 | 100 100 100 Level 1 . | . . . Level 2 . | . . . Level 3 . | . . . Level 4 . | . . . Level 5 . | . . . High Security . | . . . Max Security . | . . . Peak Influence 60 | 10 60 60 Initial 6 | . 6 . Average 9 | 1 9 11 Influence Increases 265 | 20 125 120 Destroy 0b10 Robot/C 180 | . 80 100 Destroy 0b10 Robot/NC 30 | 20 10 . Destroy Leader 44 | . 24 20 Successful Hack 11 | . 11 . Influence Decreases 265 | 10 135 120 Entered New Map 4 | . 4 . Time Decay 191 | 10 111 70 Lost Part 70 | . 20 50 Squads Dispatched 2 | . . 2 Investigation 1 | . . 1 Extermination . | . . . Reinforcement 1 | . . 1 Assault . | . . . Garrison . | . . . Intercept . | . . . Searches Triggered . | . . . Construction Impeded . | . . . Haulers Reinforced . | . . . Active Scanning Responses . | . . . Cargo Convoy Interrupts . | . . . Stealth | -11 -10 -9 --------- Run | Yrd Mat Mat Distress Signals . | . . . Communications Jammed . | . . . Distress Signals . | . . . Times Spotted 25 | . 8 17 Peak Tracking Total 6 | . 5 6 Tactical Retreats . | . . . Traps | -11 -10 -9 ------- Run | Yrd Mat Mat Traps Triggered 1 | . . 1 Indirectly . | . . . Trap Hack Attempts . | . . . Triggered . | . . . Disarmed . | . . . Reprogrammed . | . . . Reused . | . . . Traps Extracted . | . . . Installed . | . . . Triggered . | . . . Machines | -11 -10 -9 ---------- Run | Yrd Mat Mat Machines Disabled . | . . . Max in Single Turn . | . . . Machines Repaired . | . . . Machines Dismantled . | . . . Machines Sabotaged . | . . . Overloaded Fab Kills . | . . . Hacking | -11 -10 -9 --------- Run | Yrd Mat Mat Machines Accessed 5 | . 4 1 Terminals 3 | . 3 . Fabricators . | . . . Repair Stations 1 | . 1 . Recycling Units . | . . . Scanalyzers 1 | . . 1 Garrison Access . | . . . Total Hacks 17 | . 12 5 Successful 14 | . 9 5 Failed 3 | . 3 . Catastrophic . | . . . Database Lockouts . | . . . Manual . | . . . Terminals 8 | . 8 . Fabricators . | . . . Repair Stations 4 | . 4 . Recycling Units . | . . . Scanalyzers 5 | . . 5 Garrison Access . | . . . Terminal Hacks 5 | . 5 . Emergency Access Points 1 | . 1 . Alert Level 1 | . 1 . Locate Traps 1 | . 1 . Hauler Manifests 1 | . 1 . Zone Layout 1 | . 1 . Fabricator Hacks . | . . . Repair Station Hacks 4 | . 4 . Scan Component 2 | . 2 . Repair 2 | . 2 . Recycling Unit Hacks . | . . . Scanalyzer 5 | . . 5 Insert Component 2 | . . 2 Analyze 3 | . . 3 Garrison Access Hacks . | . . . Unauthorized Hacks . | . . . Terminals . | . . . Fabricators . | . . . Repair Stations . | . . . Recycling Units . | . . . Scanalyzers . | . . . Garrison Access . | . . . Data Cores Recovered . | . . . Used . | . . . Hacking Detections 3 | . 2 1 Full Trace Events 1 | . . 1 Feedback Events . | . . . Feedback Blocked . | . . . Robot Schematics Acquired . | . . . Robots Built . | . . . Authchips . | . . . Time . | . . . Total Robot Build Rating . | . . . Part Schematics Acquired 1 | . . 1 Parts Built . | . . . Authchips . | . . . Time . | . . . Total Part Build Rating . | . . . Parts Repaired 2 | . 2 . Time 52 | . 52 . Parts Recycled . | . . . Recycled Matter . | . . . Retrieved Matter . | . . . Retrieved Components . | . . . Parts Scanalyzed 1 | . . 1 Part Schematics Acquired 1 | . . 1 Parts Damaged . | . . . Bothacking | -11 -10 -9 ------------ Run | Yrd Mat Mat Used RIF Installer . | . . . Robots Hacked . | . . . Non-combat . | . . . Combat . | . . . Robot Hacks Applied . | . . . Relay Couplers Released . | . . . Fabnet Peak Effective % . | . . . Robots Rewired . | . . . Allies Hacked . | . . . Hacks Repelled . | . . . Allies | -11 -10 -9 -------- Run | Yrd Mat Mat Total Allies . | . . . Largest Group . | . . . Highest-Rated Group . | . . . Highest-Rated Ally . | . . . Total Orders . | . . . Ally Attacks . | . . . Total Damage . | . . . Kills . | . . . Allies Corrupted . | . . . Allies Melted . | . . . Intel | -11 -10 -9 ------- Run | Yrd Mat Mat Active Infowar (turns) 677 | . 331 346 Sensors 677 | . 331 346 Robot Analysis Total . | . . . Derelict Logs Recovered . | . . . Drone Launches . | . . . Drone Recoveries . | . . . Exploration | -11 -10 -9 ------------- Run | Yrd Mat Mat Turns Passed 1080 | 139 575 366 Spaces Moved 369 | 76 227 66 Core 10 | 9 . 1 Treads . | . . . Legs 359 | 67 227 65 Wheels . | . . . Hover . | . . . Flight . | . . . Fastest Speed 50 | 50 120 120 Average Speed 148 | 111 152 174 Slowest Speed 200 | 120 190 200 Overloaded Moves . | . . . Propulsion Burnouts . | . . . Robots Hopped . | . . . Potential Cave-ins . | . . . Cave-ins Triggered . | . . . Exploration Rate (%) 17 | 6 37 8 Regions Visited 2 Branch Regions . Pre-discovered Areas . | . . . Known Exits Taken . | . . . Unknown Exits Taken 2 | 1 1 . Scrap Searched . | . . . Spaces Dug . | . . . Terrain Destroyed . | . . . Melee . | . . . Projectile . | . . . AOE . | . . . Terrain Rammed . | . . . Walls Destroyed . | . . . Machines Disabled . | . . . Actions | -11 -10 -9 --------- Run | Yrd Mat Mat Total 764 | 106 408 250 Wait 241 | . 143 98 Move 367 | 75 226 66 Hop . | . . . Pick Up 21 | 9 7 5 Fast Attach . | . . . Attach 18 | 6 4 8 Detach . | . . . Swap 2 | 2 . . Drop 1 | 1 . . Fire 90 | 13 26 51 Melee . | . . . Ram 8 | . . 8 Kick 16 | . 2 14 Crush . | . . . Escape Stasis . | . . . Rewire . | . . . Trap . | . . . Miscellaneous . | . . . Route ------- -11/Scrapyard -10/Materials -9/Materials History --------- Turn | Location | Event 5 | -11/Scrapyard | Discovered new exit (range 16) 140 | -11/Scrapyard | Entered Materials 312 | -10/Materials | Build established: Mutant 517 | -10/Materials | Repaired Aluminum Leg 545 | -10/Materials | Repaired Med. Laser 671 | -10/Materials | Discovered new exit (range 10) 715 | -10/Materials | Entered another Materials area 715 | -9/Materials | Evolved 2 slots: Utility x2 1034 | -9/Materials | Core integrity fell below 50% 1074 | -9/Materials | Core integrity fell below 20% 1081 | -9/Materials | Core destroyed Last Messages --------------- Acquired 1 matter. K-01 Serf collects debris. Lgt. Assault Rifle destroyed. System corrupted: Energy discharge (-68). K-01 Serf collects debris. Slammed into G-34 Mercenary. Destabilizing: Core damaged (-4). K-01 Serf cleans the Terminal. Slammed into G-34 Mercenary. K-01 Serf collects debris. Slammed into G-34 Mercenary. K-01 Serf cleans the Terminal. Slammed into G-34 Mercenary. K-01 Serf collects debris. Slammed into G-34 Mercenary. K-01 Serf cleans the Terminal. Slammed into G-34 Mercenary. Ion Engine destroyed. Slammed into G-34 Mercenary. Destabilizing: Core damaged (-12). Map ----- +----------------------------------------------------+ | ???????????????????????????????# #??????????? | | ???????????????????????????????# #??????????? | | ???????????????????????????????# #??????????? | | ???????????????????????????????# #??????????? | | ???????????????????????????????# #??????????? | | ????????????????????????#??????# #??????????? | | ???????????????????????? ??????# #??????????? | | ???????????????????????? ??????# #??????????? | | ???????????????????????# ??????# #??????????? | | ???????????????????????# ##????# ##########?? | | ???????????????????????? k ????# # #?? | | ???????????????????????? ????# # ! """#?? | | ???????????????????????? ????# # """#?? | | ???????????????????????? ????# # """#?? | | ???????????????????????? ????# # #?? | | ????????????????????????# #????# %#% #?? | | ????????????????????????# #????# %+ "" #?? | | ????????????????????????# #????# # S"" #?? | | ????????????????????????#Y#????# # "" #?? | | ????????????????????????#Y###### ##########?? | | ????????????????????????# %!w #?????????? | | ????????????????????????# %= #?????????? | | ????????????????????????#%% #?????????? | | ????????????????????????#% #?????????? | | ????????????????????????#%k"" #?????????? | | ????????????????????????#@k"" ###?????????? | | ????????????????????????#g "T #???????????? | | ????????????????????????# "" #???????????? | | ????????????????????????# "" #???????????? | | ????????????????????????# #???????????? | | ????????????????????????# #???????????? | | ????????????????????????######## #???????????? | | ???????????????????????????????# #???????????? | | ???????????????????????????????? #???????????? | | ???????????????????????????????? #???????????? | | ???????????????????????????????? #???????????? | | ???????????????????????????????? ?????????????? | | ???????????????????????????????????????????????? | | ???????????????????????????????????????????????? | | ???????????????????????????????????????????????? | | ???????????????????????????????????????????????? | | ???????????????????????????????????????????????? | | ???????????????????????????????????????????????? | | ???????????????????????????????????????????????? | | ???????????????????????????????????????????????? | | ???????????????????????????????????????????????? | | ???????????????????????????????????????????????? | | ???????????????????????????????????????????????? | | ???????????????????????????????????????????????? | | ???????????????????????????????????????????????? | +----------------------------------------------------+ Best States ------------- Heat Dissipation 38 Energy Generation 10 Energy Capacity 250 Matter Stores 300 Matter Capacity 300 Sight Range 16 Robot Scan Range 14 Terrain Scan Density 10 Evasion (%) 55 Item Schematics ----------------- Flight Unit | -9/Materials | Scanalyzed Robot Schematics ------------------ None Fabricated ------------ Nothing Repaired ---------- Aluminum Leg | 18% | -10/Materials Med. Laser | 15% | -10/Materials Alien Tech Used ----------------- None Achievements -------------- None Challenges ------------ None Game ------ Seed DispersalCloakBlade Manual? 0 Play Time 00:11:50 Cumulative 33.9 hours Start 2025.07.13 @ 10:08:49 End 2025.07.13 @ 10:17:51 Sessions 1 Manual Loads 0 Difficulty Rogue Special Mode None Game No. 57 Rogue 57 Adventurer 0 Explorer 0 Win Type - Total 0 Types 0/0/0/0/0/0/0/0/0/0 Lore% 14 Gallery% 22 Achievement% 22 Wizard Run 0 Options --------- Layout 1 ASCII 0 Keyboard 0 Movement Mouse Keybinds 0 Fullscreen 1 Font 24/Smallcaps Map View 50x35 Zoom Use 0% Tactical HUD 0 Map Filters NONE Filters NONE Steam 1 RUN: 395b72ed-2f10-4ae7-957d-551a4c8fa16d